bitfinex-derivatives/quotes_SOLF0:USTF0_20250125
["timestamp","ask_amount","ask_price","bid_price","bid_amount"]
[1737831602982,5.34207284,258.78,258.74,5.86559595]
[1737831603287,5.86559595,258.85,258.77,5.86559595]
[1737831603489,3.8639,258.85,258.77,5.86559595]
[1737831603683,5.86559595,258.88,258.77,5.86559595]
[1737831603884,5.86559595,258.88,258.8,5.86559595]
[1737831604084,11.20766879,258.91,258.8,5.86559595]
[1737831604385,11.20766879,258.91,258.78,0.02810221]
[1737831604386,11.20766879,258.91,258.83,5.86559595]
[1737831604585,5.34207284,258.91,258.86,5.86559595]
[1737831604784,5.86559595,258.87,258.76,5.86559595]
[1737831604980,5.86559595,258.87,258.86,0.0260759]
[1737831605188,5.86559595,258.87,258.76,5.86559595]
[1737831605389,5.86559595,258.9,258.84,0.02856213]
[1737831605587,5.86559595,258.93,258.85,5.86559595]
[1737831605789,1.2846,259.05,258.71,2.5443]
[1737831605790,9.11397244,258.99,258.84,0.02538332]
[1737831605991,9.11397244,258.99,258.8,9.11397244]
[1737831606190,3.8621,258.97,258.89,0.02955751]
[1737831606394,9.11397244,258.99,258.89,0.02955751]
[1737831606691,9.11397244,259.03,258.89,0.02955751]
[1737831606891,3.8616,259.0,258.89,0.02955751]
[1737831607090,3.8616,259.0,258.84,9.11397244]
[1737831607282,3.8616,259.0,258.93,0.02909073]
[1737831607584,9.11397244,259.03,258.93,0.02909073]
[1737831607786,1.2846,259.05,258.93,0.02909073]
[1737831607986,9.11397244,259.07,258.93,0.02909073]
[1737831609283,3.8609,259.05,258.93,3.89159073]
[1737831609487,9.11397244,259.07,258.93,3.89159073]
[1737831609792,9.11397244,259.07,258.93,0.02909073]
[1737831610590,3.8604,259.08,258.95,3.8622]
[1737831610790,3.8604,259.08,258.96,9.11397244]
[1737831610987,9.11397244,259.11,258.99,0.02791532]
[1737831611593,3.8609,259.05,258.99,0.02791532]
[1737831611791,9.11397244,259.11,258.99,0.02791532]
[1737831612894,3.8611,259.04,258.99,0.02791532]
[1737831613190,9.11397244,259.11,258.99,0.02791532]
[1737831613386,1.3446,259.14,258.99,0.02791532]
[1737831613594,10.45097244,259.19,259.0,9.11397244]
[1737831613893,10.45097244,259.19,259.0,10.38957244]
[1737831614193,3.8599,259.11,259.07,0.0260734]
[1737831614590,10.45097244,259.19,259.07,0.0260734]
[1737831614791,3.8596,259.13,259.07,0.0260734]
[1737831614997,10.45097244,259.19,259.07,0.0260734]
[1737831615194,3.8594,259.15,259.07,3.8864734]
[1737831615792,9.11397244,259.23,259.07,0.0260734]
[1737831615997,9.11397244,259.23,259.08,9.11397244]
[1737831616298,9.11397244,259.23,259.12,0.02904572]
[1737831617202,9.11397244,259.19,259.12,0.02904572]
[1737831617498,3.8595,259.14,259.12,0.02904572]
[1737831618298,9.11397244,259.23,259.12,0.02904572]
[1737831618993,3.8592,259.16,259.12,0.02904572]
[1737831619199,9.11397244,259.23,259.12,0.02904572]
[1737831619801,3.8595,259.14,259.12,0.02904572]
[1737831620299,9.11397244,259.15,259.01,1.2322]
[1737831620497,3.8609,259.05,259.01,1.2322]
[1737831620702,9.11397244,259.11,259.0,1.2756]
[1737831621201,3.8608,259.05,259.0,1.2756]
[1737831621500,0.02940205,259.08,259.03,0.02515404]
[1737831621696,3.8606,259.07,259.03,0.02515404]
[1737831622003,0.02940205,259.08,259.03,0.02515404]
[1737831626195,3.8608,259.05,259.03,0.02515404]
[1737831627101,9.11397244,259.07,258.83,2.7]
[1737831627401,9.11397244,259.01,258.84,0.70949931]
[1737831627699,9.11397244,259.01,258.91,3.8628]
[1737831628101,0.02749639,258.99,258.93,0.02686524]
[1737831629305,0.02749639,258.99,258.97,3.8619]
[1737831629603,0.02749639,258.99,258.93,1.28056524]
[1737831629807,0.02749639,258.99,258.97,3.8619]
[1737831631905,0.02749639,258.99,258.94,1.2349]
[1737831632707,0.02749639,258.99,258.96,3.8621]
[1737831633107,0.02749639,258.99,258.94,1.2349]
[1737831633305,0.02749639,258.99,258.97,3.8619]
[1737831633603,9.11397244,259.11,258.94,1.2349]
[1737831633799,3.8602,259.09,258.95,0.70934842]
[1737831634606,0.02744495,259.05,258.99,0.02899754]
[1737831634805,0.02744495,259.05,259.02,3.8612]
[1737831635709,0.02744495,259.05,258.99,0.02899754]
[1737831636410,3.8612,259.02,258.99,0.02899754]
[1737831636811,0.02744495,259.05,258.99,0.02899754]
[1737831637002,3.8614,259.01,258.99,0.02899754]
[1737831638909,0.02744495,259.05,258.99,0.02899754]
[1737831639110,3.8615,259.0,258.99,0.02899754]
[1737831639707,3.8614,259.01,258.99,0.02899754]
[1737831641502,0.02744495,259.05,258.99,0.02899754]
[1737831642911,3.8614,259.01,258.99,0.02899754]
[1737831643106,9.11397244,259.02,258.99,0.02899754]
[1737831643311,3.8615,259.0,258.99,0.02899754]
[1737831643512,9.11397244,259.02,258.92,3.8627]
[1737831643709,9.11397244,258.97,258.92,3.8627]
[1737831644714,9.13974639,258.97,258.92,3.88743617]
[1737831645115,3.8622,258.96,258.92,0.02473617]
[1737831646512,9.13974639,258.97,258.92,0.02473617]
[1737831646715,9.11397244,258.93,258.92,0.02473617]
[1737831646909,12.97657244,258.93,258.92,0.02473617]
[1737831647114,9.11397244,258.93,258.8,1.2405]
[1737831648315,3.89003383,258.89,258.84,0.02967857]
[1737831648508,0.02683383,258.89,258.84,0.02967857]
[1737831648707,0.02683383,258.89,258.85,3.8637]
[1737831649315,0.02683383,258.89,258.86,10.07299856]
[1737831649816,0.02683383,258.89,258.87,10.07299856]
[1737831650218,0.02683383,258.89,258.85,3.8637]
[1737831652112,0.02683383,258.89,258.84,0.02967857]
[1737831653216,3.89003383,258.89,258.84,0.02967857]
[1737831656219,0.02683383,258.89,258.84,0.02967857]
[1737831656614,0.02683383,258.89,258.85,3.8637]
[1737831661725,0.02683383,258.89,258.86,3.8635]
[1737831662223,0.02683383,258.89,258.84,0.02967857]
[1737831662427,9.11397244,259.01,258.86,9.11397244]
[1737831662625,9.11397244,259.05,258.87,1.2743]
[1737831663125,3.8613,259.02,258.87,1.2743]
[1737831663629,0.0246878,258.97,258.96,3.8621]
[1737831663932,10.41867244,259.09,258.9,9.11397244]
[1737831665025,0.02765599,259.02,258.97,0.02801313]
[1737831666224,9.11397244,259.01,258.97,0.02801313]
[1737831666422,9.11397244,259.16,258.97,0.02801313]
[1737831666627,3.8595,259.14,259.06,3.8606]
[1737831666822,9.11397244,259.2,259.0,1.2267]
[1737831667022,9.11397244,259.2,259.03,9.11397244]
[1737831667329,3.8585,259.21,259.03,9.11397244]
[1737831667531,2.5757,259.23,259.03,9.11397244]
[1737831667723,0.02030649,259.15,259.09,0.02808208]
[1737831672029,0.02030649,259.15,259.13,3.8595]
[1737831673231,0.02030649,259.15,259.09,0.02808208]
[1737831673232,3.87960649,259.15,259.09,0.02808208]
[1737831673828,0.02030649,259.15,259.09,0.02808208]
[1737831674630,3.8596,259.13,259.09,0.02808208]
[1737831674832,0.02030649,259.15,259.09,0.02808208]
[1737831676027,3.8595,259.14,259.09,0.02808208]
[1737831676828,0.02030649,259.15,259.09,0.02808208]
[1737831677028,3.8596,259.13,259.09,0.02808208]
[1737831677524,3.8596,259.14,259.09,0.02808208]
[1737831677723,0.02030649,259.15,259.09,0.02808208]
[1737831678834,3.8597,259.13,259.09,0.02808208]
[1737831679033,0.02030649,259.15,259.09,0.02808208]
[1737831682132,0.02030649,259.15,259.1,3.8599]
[1737831682439,0.02030649,259.15,259.09,0.02808208]
[1737831682741,9.11397244,259.2,259.15,3.8592]
[1737831683739,9.11397244,259.2,259.15,3.88665297]
[1737831683939,9.11397244,259.24,259.17,3.859]
[1737831684435,9.11397244,259.24,259.18,0.02695416]
[1737831684939,9.11397244,259.28,259.18,0.02695416]
[1737831685140,2.21264607,259.3,259.18,0.02695416]
[1737831685439,3.8568,259.32,259.18,0.02695416]
[1737831685840,3.8568,259.32,259.25,3.8577]
[1737831686244,9.11397244,259.33,259.26,0.02841241]
[1737831686437,9.11397244,259.37,259.26,0.02841241]
[1737831687136,9.11397244,259.33,259.26,0.02841241]
[1737831687341,9.11397244,259.29,259.16,1.279]
[1737831687637,3.8577,259.26,259.16,1.279]
[1737831687840,9.11397244,259.25,259.2,0.02843704]
[1737831688035,3.8581,259.23,259.16,1.279]
[1737831688238,3.8581,259.23,259.2,0.02729424]
[1737831688441,9.11397244,259.25,259.2,0.02729424]
[1737831688635,12.97187244,259.25,259.2,0.02729424]
[1737831689237,9.11397244,259.25,259.2,0.02729424]
[1737831690143,3.8583,259.22,259.2,0.02729424]
[1737831691042,9.11397244,259.29,259.2,0.02729424]
[1737831691236,9.11397244,259.29,259.14,1.2759]
[1737831691441,9.11397244,259.29,259.22,0.02905251]
[1737831691837,9.11397244,259.25,259.22,0.02905251]
[1737831692046,9.11397244,259.25,259.14,1.2759]
[1737831692248,9.11397244,259.25,259.21,0.02655709]
[1737831693144,3.8582,259.22,259.21,0.02655709]
[1737831693944,3.8582,259.22,259.07,2.6248]
[1737831693945,3.8594,259.15,259.07,2.6248]
[1737831694946,0.02655709,259.14,259.08,0.02627187]
[1737831696044,202.7122,259.37,259.08,0.02627187]
[1737831696045,9.11397244,259.29,259.1,9.11397244]
[1737831696240,9.11397244,259.33,259.14,9.11397244]
[1737831696547,9.11397244,259.33,259.15,1.3163]
[1737831696843,9.11397244,259.33,259.19,3.8586]
[1737831697049,9.11397244,259.33,259.23,0.02846549]
[1737831697846,9.11397244,259.29,259.23,0.02846549]
[1737831699347,3.8579,259.25,259.23,0.02846549]
[1737831702752,3.858,259.24,259.23,0.02846549]
[1737831704250,3.8589,259.18,259.06,9.11397244]
[1737831704452,3.8589,259.18,259.1,3.86]
[1737831704652,3.8589,259.18,259.06,9.11397244]
[1737831705048,3.8593,259.16,259.06,9.11397244]
[1737831705249,3.8593,259.16,259.04,2.7]
[1737831705453,0.02763249,259.14,259.09,0.02880178]
[1737831707048,3.8599,259.12,259.09,0.02880178]
[1737831708154,3.8599,259.11,259.09,0.02880178]
[1737831712659,9.11397244,259.13,259.09,0.02880178]
[1737831712859,3.86,259.1,259.09,0.02880178]
[1737831713259,3.8612,259.02,258.94,1.3344]
[1737831713862,9.11397244,259.08,258.94,1.3344]
[1737831714056,3.8608,259.05,258.98,3.8618]
[1737831714359,3.8608,259.05,258.94,1.3344]
[1737831714360,0.02708095,259.04,258.99,0.0266813]
[1737831715159,0.02708095,259.04,258.99,3.8881813]
[1737831717062,3.88798095,259.04,258.99,0.0266813]
[1737831719568,3.8611,259.03,258.99,0.0266813]
[1737831720467,9.11397244,259.21,259.02,9.11397244]
[1737831720668,9.11397244,259.21,259.03,1.2435]
[1737831720861,9.11397244,259.17,259.03,2.4755]
[1737831721067,9.11397244,259.17,259.03,1.2435]
[1737831721464,3.8598,259.12,259.03,5.1045]
[1737831721665,3.8598,259.12,259.07,0.02829458]
[1737831721863,0.02634348,259.13,259.07,0.02829458]
[1737831722063,3.8601,259.1,259.07,0.02829458]
[1737831722662,9.14031592,259.13,259.07,0.02829458]
[1737831722866,3.8602,259.09,259.07,0.02829458]
[1737831723466,3.8599,259.11,259.07,0.02829458]
[1737831723661,9.14031592,259.13,259.07,0.02829458]
[1737831724574,3.8599,259.11,259.07,0.02829458]
[1737831725869,3.8602,259.09,259.07,0.02829458]
[1737831728369,3.86,259.11,259.07,0.02829458]
[1737831728971,0.02634348,259.13,259.09,3.8601]
[1737831731072,3.88594348,259.13,259.09,3.8601]
[1737831731972,0.02634348,259.13,259.11,3.8599]
[1737831732170,0.02634348,259.13,259.07,0.02829458]
[1737831732472,0.02634348,259.13,259.12,3.8597]
[1737831733472,9.11397244,259.29,259.1,9.11397244]
[1737831733672,9.11397244,259.29,259.19,3.8587]
[1737831734065,3.8576,259.27,259.15,3.8592]
[1737831734269,3.8576,259.27,259.1,9.11397244]
[1737831734467,9.11397244,259.29,259.11,0.7088289]
[1737831734673,9.11397244,259.29,259.16,0.02716375]
[1737831734875,9.11397244,259.33,259.16,0.02716375]
[1737831735475,9.11397244,259.33,259.14,9.11397244]
[1737831735667,9.11397244,259.33,259.22,0.02454932]
[1737831736274,3.8576,259.27,259.22,0.02454932]
[1737831736872,3.858,259.25,259.22,0.02454932]
[1737831737174,9.11397244,259.28,259.22,0.02454932]
[1737831737374,12.97197244,259.24,259.22,0.02454932]
[1737831741077,3.858,259.24,259.22,0.02454932]
[1737831743777,3.8577,259.26,259.22,0.02454932]
[1737831744383,9.11397244,259.28,259.22,0.02454932]
[1737831744578,12.97147244,259.28,259.22,3.88274932]
[1737831744884,11.80827244,259.37,259.22,0.02454932]
[1737831745284,3.8568,259.32,259.26,3.8576]
[1737831745683,3.8568,259.32,259.26,3.88709983]
[1737831746078,3.8568,259.32,259.27,3.8574]
[1737831746283,3.8563,259.36,259.26,0.02949983]
[1737831747690,3.8563,259.35,259.28,3.8572]
[1737831748386,12.97017244,259.37,259.3,3.8571]
[1737831748690,9.11397244,259.37,259.26,0.02949983]
[1737831749584,3.8566,259.33,259.26,0.02949983]
[1737831752792,3.8568,259.32,259.26,3.88719983]
[1737831754284,3.8565,259.34,259.26,0.02949983]
[1737831754482,9.11397244,259.33,259.26,0.02949983]
[1737831754984,3.8575,259.27,259.26,0.02949983]
[1737831756390,3.8582,259.23,259.09,11.81397244]
[1737831756592,9.11397244,259.29,259.1,4.62413809]
[1737831756786,9.11397244,259.29,259.1,3.9153]
[1737831757191,3.8585,259.21,259.1,3.9153]
[1737831757584,0.0252353,259.18,259.13,0.02843377]
[1737831758091,0.0252353,259.18,259.15,3.8593]
[1737831758691,0.0252353,259.18,259.16,3.8591]
[1737831760688,0.0252353,259.18,259.17,3.859]
[1737831765698,0.0252353,259.18,259.13,0.02843377]
[1737831766999,3.8841353,259.18,259.13,3.88803377]
[1737831768304,0.0252353,259.18,259.13,0.02843377]
[1737831769000,3.8594,259.14,259.13,0.02843377]
[1737831776307,3.8594,259.14,258.98,2.7]
[1737831776308,9.11397244,259.16,258.92,9.11397244]
[1737831776612,9.11397244,259.16,258.86,289.00471531]
[1737831776613,9.11397244,258.94,258.87,17.98780927]
[1737831776911,9.11397244,259.0,258.86,289.00471531]
[1737831776912,9.11397244,258.92,258.86,289.00471531]
[1737831777610,9.11397244,258.88,258.86,289.03039961]
[1737831777909,9.11397244,258.88,258.86,201.67622464]
[1737831779611,9.11397244,258.88,258.86,191.60322608]
[1737831780711,12.97737244,258.88,258.86,68.02727404]
[1737831780912,12.97737244,258.88,258.86,0.0256843]
[1737831781210,3.8641,258.83,258.73,6.4389]
[1737831781410,9.11397244,258.79,258.73,6.4389]
[1737831781813,9.11397244,258.79,258.74,3.8653]
[1737831782514,0.02718042,258.79,258.74,3.89418733]
[1737831782714,0.02718042,258.79,258.75,3.8652]
[1737831783314,0.02718042,258.79,258.74,0.02888733]
[1737831784113,0.02718042,258.79,258.77,3.8649]
[1737831784515,3.8631,258.9,258.75,9.11397244]
[1737831784716,34.34506381,258.92,258.83,3.864]
[1737831785516,12.97677244,258.92,258.84,3.8639]
[1737831785719,0.02663828,258.9,258.75,8.69499142]
[1737831786921,3.88973828,258.9,258.82,3.8641]
[1737831787916,3.8632,258.89,258.82,3.8641]
[1737831788518,3.8632,258.89,258.83,3.864]
[1737831790116,0.02663828,258.9,258.83,3.8641]
[1737831790312,0.02663828,258.9,258.81,1.3004]
[1737831791623,0.02663828,258.9,258.86,3.8636]
[1737831792019,0.02663828,258.9,258.85,0.02475659]
[1737831792220,0.02663828,258.9,258.87,3.8634]
[1737831792420,0.02663828,258.9,258.85,0.02475659]
[1737831792918,3.8635,258.87,258.85,0.02475659]
[1737831793122,0.02663828,258.9,258.85,0.02475659]
[1737831794019,9.11397244,259.0,258.85,0.02475659]
[1737831794517,3.8617,259.0,258.86,9.11397244]
[1737831794714,3.8617,259.0,258.87,0.70975861]
[1737831795115,3.8617,259.0,258.86,9.11397244]
[1737831795314,0.02485299,258.96,258.91,0.02515489]
[1737831796223,0.02485299,258.96,258.91,3.88795489]
[1737831796821,0.02485299,258.96,258.91,0.02515489]
[1737831797017,3.8623,258.95,258.91,0.02515489]
[1737831797822,3.8624,258.94,258.91,0.02515489]
[1737831799321,3.8624,258.94,258.88,3.84824766]
[1737831799523,3.8627,258.92,258.86,3.8636]
[1737831800323,3.8627,258.92,258.86,3.89121292]
[1737831801024,3.8625,258.94,258.86,3.89121292]
[1737831801224,0.02485299,258.96,258.86,3.89121292]
[1737831801723,3.8626,258.93,258.87,3.8634]
[1737831801923,0.02485299,258.96,258.86,0.02761292]
[1737831803121,0.02485299,258.96,258.91,3.8628]
[1737831804227,3.88695299,258.96,258.9,3.8629]
[1737831804417,3.88695299,258.96,258.86,0.02761292]
[1737831804622,0.02485299,258.96,258.86,0.02761292]
[1737831805425,0.02485299,258.96,258.86,9.14158536]
[1737831806030,0.02485299,258.96,258.92,3.8626]
[1737831806930,0.02485299,258.96,258.84,2.5381]
[1737831807231,3.8623,258.95,258.84,2.5381]
[1737831807431,0.02485299,258.96,258.84,2.5381]
[1737831807635,0.02485299,258.96,258.9,3.863]
[1737831808033,0.02485299,258.96,258.9,3.88746105]
[1737831808434,0.02485299,258.96,258.9,0.02446105]
[1737831809126,0.02485299,258.96,258.92,3.8627]
[1737831811133,0.02485299,258.96,258.93,3.8625]
[1737831814739,0.02485299,258.96,258.9,0.02446105]
[1737831814937,9.11397244,259.05,258.9,0.02446105]
[1737831815134,25.14019097,259.09,258.9,0.02446105]
[1737831815530,25.14019097,259.09,258.87,9.11397244]
[1737831816237,0.02896123,259.0,258.95,0.02709892]
[1737831817137,0.02896123,259.0,258.96,3.862]
[1737831818131,0.02896123,259.0,258.97,3.862]
[1737831819531,0.02896123,259.0,258.98,3.8618]
[1737831819735,0.02896123,259.0,258.95,0.02709892]
[1737831820839,0.02896123,259.0,258.99,3.8617]
[1737831821038,0.02896123,259.0,258.95,0.02709892]
[1737831822240,0.02896123,259.0,258.97,3.8619]
[1737831823340,0.02896123,259.0,258.95,0.02709892]
[1737831823541,5.82912879,258.99,258.95,0.02709892]
[1737831824640,3.8619,258.98,258.95,0.02709892]
[1737831824841,5.82912879,258.99,258.95,0.02709892]
[1737831827142,3.8621,258.97,258.95,0.02709892]
[1737831828040,3.8621,258.97,258.9,1.24382924]
[1737831828344,3.8621,258.97,258.89,5.82912879]
[1737831828937,3.8621,258.97,258.92,3.8626]
[1737831829442,3.88897451,258.97,258.92,3.88843455]
[1737831829743,3.8621,258.96,258.92,0.02583455]
[1737831830737,3.8626,258.93,258.92,0.02583455]
[1737831830941,9.69172879,258.93,258.92,0.02583455]
[1737831833851,3.8638,258.85,258.8,13.56842879]
[1737831834339,3.8638,258.85,258.8,9.70402879]
[1737831834844,3.8636,258.86,258.81,3.8643]
[1737831835037,0.0280253,258.85,258.81,3.8643]
[1737831837747,0.0280253,258.85,258.8,5.85431493]
[1737831837947,3.8918253,258.85,258.8,9.71881493]
[1737831840250,3.8641,258.83,258.8,0.02518614]
[1737831840553,5.85715409,258.85,258.8,0.02518614]
[1737831840944,3.8644,258.81,258.8,0.02518614]
[1737831843653,3.8655,258.74,258.68,5.82912879]
[1737831843854,11.58,258.92,258.65,5.82912879]
[1737831843855,5.82912879,258.76,258.65,5.82912879]
[1737831844652,5.82912879,258.73,258.65,5.82912879]
[1737831844850,5.85838251,258.73,258.68,0.02744574]
[1737831845460,0.02925372,258.73,258.68,5.85657453]
[1737831846859,0.02925372,258.73,258.71,5.82912879]
[1737831847758,0.02925372,258.73,258.68,0.02744574]
[1737831848259,3.89485372,258.73,258.68,0.02744574]
[1737831848459,0.02925372,258.73,258.68,0.02744574]
[1737831849451,3.8661,258.7,258.68,0.02744574]
[1737831850257,3.8661,258.7,258.56,12.98365532]
[1737831850558,3.8661,258.7,258.57,0.71028523]
[1737831850959,3.8661,258.7,258.56,12.98365532]
[1737831851260,3.8662,258.69,258.59,3.8675]
[1737831851462,0.02494581,258.66,258.6,0.02537088]
[1737831852160,0.02494581,258.66,258.62,3.8672]
[1737831852561,0.02494581,258.66,258.64,3.8668]
[1737831856768,0.02494581,258.66,258.6,0.02537088]
[1737831856969,0.02494581,258.66,258.62,3.8672]
[1737831857459,0.02494581,258.66,258.63,3.867]
[1737831859167,0.02494581,258.66,258.61,3.8672]
[1737831859668,0.02494581,258.66,258.6,0.02537088]
[1737831859870,0.02494581,258.66,258.62,3.8672]
[1737831861564,9.15060113,258.66,258.6,0.02537088]
[1737831861771,3.8674,258.61,258.6,0.02537088]
[1737831864271,3.8684,258.55,258.46,3.8967]
[1737831864671,9.12565532,258.62,258.46,3.8967]
[1737831865370,3.8676,258.6,258.51,3.89494949]
[1737831865573,0.02616869,258.57,258.51,3.89494949]
[1737831865873,0.02616869,258.57,258.52,3.8687]
[1737831866080,0.02616869,258.57,258.51,0.02614949]
[1737831867872,3.8667,258.66,258.52,9.12565532]
[1737831868071,3.8667,258.66,258.53,0.710551]
[1737831868271,9.12565532,258.7,258.59,3.8676]
[1737831868477,3.8669,258.64,258.52,9.12565532]
[1737831868672,3.8669,258.64,258.53,0.71046855]
[1737831868871,3.8669,258.64,258.58,3.8678]
[1737831869072,3.89232875,258.61,258.56,0.0244273]
[1737831869368,0.02482875,258.61,258.56,0.0244273]
[1737831870380,0.02482875,258.61,258.59,3.8676]
[1737831871074,0.02482875,258.61,258.6,3.8675]
[1737831871777,0.02482875,258.61,258.6,2.81537843]
[1737831872675,0.02482875,258.61,258.56,0.0244273]
[1737831872880,0.02482875,258.61,258.56,3.8924273]
[1737831873081,0.02482875,258.61,258.56,0.0244273]
[1737831873378,3.8677,258.59,258.56,0.0244273]
[1737831873979,0.02482875,258.61,258.57,3.8679]
[1737831875080,0.02482875,258.61,258.6,3.8675]
[1737831875380,0.02482875,258.61,258.56,0.0244273]
[1737831876179,0.02482875,258.61,258.58,3.8677]
[1737831876680,0.02482875,258.61,258.56,0.0244273]
[1737831876880,0.02482875,258.61,258.6,3.8675]
[1737831879886,0.02482875,258.61,258.59,3.8676]
[1737831880283,0.02482875,258.61,258.56,0.0244273]
[1737831880487,3.8675,258.6,258.56,0.0244273]
[1737831881386,0.02482875,258.61,258.56,0.0244273]
[1737831882086,3.8679,258.57,258.56,0.0244273]
[1737831883793,3.8691,258.5,258.44,53.88762404]
[1737831884892,3.89802516,258.5,258.44,53.9137477]
[1737831885187,3.89802516,258.5,258.44,57.7835477]
[1737831885391,0.02892516,258.5,258.44,53.9137477]
[1737831887192,0.02892516,258.5,258.45,3.8696]
[1737831889493,0.02892516,258.5,258.44,53.9137477]
[1737831889693,0.02892516,258.5,258.46,3.8696]
[1737831892097,0.02892516,258.5,258.49,3.8691]
[1737831892299,0.02892516,258.5,258.44,44.82836934]
[1737831892798,0.02892516,258.5,258.49,3.8691]
[1737831894899,3.8664,258.68,258.52,9.12565532]
[1737831895098,9.12565532,258.7,258.53,2.6063]
[1737831895400,3.8671,258.63,258.56,3.868]
[1737831896103,0.02699794,258.62,258.57,0.02887778]
[1737831896398,0.02699794,258.62,258.57,3.89677778]
[1737831896800,0.02699794,258.62,258.57,0.02887778]
[1737831896999,0.02699794,258.62,258.58,3.8678]
[1737831897196,0.02699794,258.62,258.57,0.02887778]
[1737831898201,0.02699794,258.62,258.59,3.8676]
[1737831900304,0.02699794,258.62,258.58,3.8678]
[1737831901904,0.02699794,258.62,258.57,0.02887778]
[1737831902198,0.02699794,258.62,258.59,3.8676]
[1737831902598,0.02699794,258.62,258.57,0.02887778]
[1737831902798,0.02699794,258.62,258.61,3.8673]
[1737831903602,9.12565532,258.74,258.57,0.02887778]
[1737831903807,5.84364181,258.74,258.64,5.84364181]
[1737831904102,5.84364181,258.74,258.43,14.98939071]
[1737831904103,5.84364181,258.65,258.36,130.7722132]
[1737831904401,5.84364181,258.37,258.36,3.008e-05]
[1737831905704,9.15740656,258.38,258.36,3.008e-05]
[1737831905901,2.98503762,258.37,258.36,3.008e-05]
[1737831906408,9.15740656,258.38,258.36,3.008e-05]
[1737831906908,13.02830656,258.38,258.34,0.02438853]
[1737831907506,9.15740656,258.38,258.34,0.02438853]
[1737831908007,3.01624728,258.37,258.34,0.02438853]
[1737831908209,6.88724728,258.37,258.34,0.02438853]
[1737831908602,3.01624728,258.36,258.34,0.02438853]
[1737831909106,3.01624728,258.35,258.34,0.02438853]
[1737831910807,9.15740656,258.38,258.34,0.02438853]
[1737831911507,0.02880026,258.39,258.34,0.02438853]
[1737831912308,9.15740656,258.38,258.34,0.02438853]
[1737831914210,9.15740656,258.38,258.22,0.08999673]
[1737831915208,0.02974296,258.33,258.3,3.8719]
[1737831915812,0.02974296,258.33,258.32,3.8717]
[1737831916112,9.15740656,258.48,258.3,9.15740656]
[1737831916409,3.8699,258.44,258.37,3.8708]
[1737831917112,0.02577792,258.43,258.38,0.02925752]
[1737831917611,0.02577792,258.43,258.38,3.89995752]
[1737831917911,0.02577792,258.43,258.38,0.02925752]
[1737831918210,3.89587792,258.43,258.38,0.02925752]
[1737831919408,0.02577792,258.43,258.38,0.02925752]
[1737831920614,0.02577792,258.43,258.39,3.8706]
[1737831920814,0.02577792,258.43,258.38,0.02925752]
[1737831921815,0.02577792,258.43,258.38,3.90005752]
[1737831922218,0.02577792,258.43,258.38,0.02925752]
[1737831922413,0.02577792,258.43,258.41,3.8703]
[1737831922907,0.02577792,258.43,258.38,0.02925752]
[1737831923413,0.02577792,258.43,258.41,3.8703]
[1737831924611,9.15740656,258.52,258.39,1.3371]
[1737831924815,3.8694,258.48,258.43,3.87]
[1737831925011,9.15740656,258.52,258.4,2.5882]
[1737831925716,3.8697,258.46,258.43,0.02492171]
[1737831926618,3.8697,258.45,258.43,0.02492171]
[1737831927316,3.8699,258.44,258.43,0.02492171]
[1737831930622,9.15740656,258.48,258.43,0.02492171]
[1737831931322,3.8694,258.47,258.43,0.02492171]
[1737831932824,0.02533748,258.49,258.43,0.02492171]
[1737831933624,3.8699,258.44,258.43,0.02492171]
[1737831935621,13.02730656,258.44,258.43,0.02492171]
[1737831935827,9.15740656,258.44,258.29,2.6352]
[1737831936027,9.15740656,258.4,258.29,2.6352]
[1737831936217,9.15740656,258.4,258.29,6.5073]
[1737831936525,3.8712,258.36,258.29,6.5073]
[1737831936826,3.8713,258.35,258.29,6.5073]
[1737831937024,9.15740656,258.3,258.06,9.15740656]
[1737831937227,9.15740656,258.18,258.05,2.6352]
[1737831937726,9.15740656,258.18,258.09,3.875]
[1737831938229,0.02536865,258.16,258.11,0.02623441]
[1737831941020,3.8744,258.14,258.11,0.02623441]
[1737831942023,0.02536865,258.16,258.11,0.02623441]
[1737831942227,3.8747,258.13,258.11,0.02623441]
[1737831942429,26.25128943,258.3,258.11,0.02623441]
[1737831942625,3.8723,258.28,258.16,3.874]
[1737831942828,20.01336227,258.35,258.17,2.6555]
[1737831943426,3.872,258.3,258.21,3.8732]
[1737831943728,0.02453937,258.28,258.23,0.02470773]
[1737831945024,3.8726,258.26,258.23,0.02470773]
[1737831945230,0.02453937,258.28,258.23,0.02470773]
[1737831946029,3.8728,258.25,258.23,0.02470773]
[1737831946431,0.02453937,258.28,258.23,0.02470773]
[1737831946636,3.8725,258.27,258.23,0.02470773]